Cogmind - Beta 16 @@@ ROGUE MODE // 2026.02.04 @ 19:21:42 Player: eb Result: Destroyed by H-71 Marshal with Heavy Mass Driver Performance ------------- Evolutions (6) 3000 Regions Visited (9) 1800 Robots Destroyed (42) 210 Value Destroyed (1197) 1197 Prototype IDs (11) 220 Alien Tech Used (0) 0 Bonus (1300) 1300 TOTAL SCORE: 7727 Bonus ------- Entered DSFs 500 Registered with UFD 300 Met Optimus in HQ 500 Cogmind --------- Core Integrity 0/1150 Matter 181/300 Energy 99/100 System Corruption 3% Temperature Cool (0) Movement Core (50) Location -4/Factory Parts ------- > --- POWER (2) -------- (None) > --- PROPULSION (4) --- (None) > --- UTILITY (7) ------ (None) > --- WEAPON (6) ------- (None) > --- INVENTORY (5) ---- Armored Medium Treads Armored Medium Treads Advanced Sensor Array Peak State ------------ > --- POWER ------------ Improved Deuterium Engine Light Angular Momentum Engine > --- PROPULSION ------- Advanced Treads Overtuned Treads Medium Treads > --- UTILITY ---------- Scrap Suit Large Storage Unit Advanced Trap Scanner Advanced Sensor Array Advanced Signal Interpreter Precision Matter Filter > --- WEAPON ----------- Gauss Rifle Heavy Battle Rifle Gauss Cannon Makeshift Axe > --- INVENTORY -------- Micro Fission Core Scrap Suit Enhanced Optical Array Improved Target Analyzer Precision Matter Filter Precision Matter Filter Precision Matter Filter High-powered Shock Rifle Improved Arc Projector Gauss Cannon Gauss Cannon Gauss Cannon Lance DRS Beacon [Rating: 76] Favorites ----------- Power Cooled Ion Engine Engine Cooled Ion Engine Power Core Micro Fission Core Propulsion Light Treads Treads Light Treads Wheel Armored Huge Wheel Hover Unit Improved Antigrav System Flight Unit VTOL Module Utility Large Storage Unit Device Scrap Suit Storage Large Storage Unit Processor Advanced Signal Interpreter Hackware Improved System Shield Protection Improved Power Shielding Weapon Heavy Battle Rifle Energy Gun EM Pulse Gun Energy Cannon Light EM Pulse Cannon Ballistic Gun Heavy Battle Rifle Ballistic Cannon Gauss Cannon Launcher Grenade Launcher Slashing Weapon Makeshift Axe Build | -11 -10 -10 -10 -7 -5 -5 -5 -5 -4 ------- Run | Yrd Mat Min Sub Scr Fac Was Fac DSF Fac Slots Evolved 12 | . . . . . 10 . . . 2 Power 1 | . . . . . 1 . . . . Propulsion 2 | . . . . . 2 . . . . Utility 5 | . . . . . 5 . . . . Weapon 4 | . . . . . 2 . . . 2 Parts Attached 68 | 6 12 1 1 8 17 . 2 . 21 Power 8 | 1 1 . . 1 3 . . . 2 Engine 5 | 1 1 . . 1 2 . . . . Core 3 | . . . . . 1 . . . 2 Reactor . | . . . . . . . . . . Propulsion 11 | 2 . . 1 3 . . 1 . 4 Treads 6 | 2 . . 1 3 . . . . . Leg . | . . . . . . . . . . Wheel 1 | . . . . . . . 1 . . Hover 2 | . . . . . . . . . 2 Flight 2 | . . . . . . . . . 2 Utility 23 | 1 3 . . 1 7 . . . 11 Device 11 | . . . . . 6 . . . 5 Storage 2 | 1 1 . . . . . . . . Processor 3 | . 1 . . 1 . . . . 1 Hackware 1 | . . . . . . . . . 1 Protection 6 | . 1 . . . 1 . . . 4 Artifact . | . . . . . . . . . . Weapon 26 | 2 8 1 . 3 7 . 1 . 4 Energy Gun 4 | 1 1 . . . . . . . 2 Energy Cannon 6 | . 4 . . . 1 . . . 1 Ballistic Gun 8 | 1 2 1 . 2 1 . . . 1 Ballistic Cannon 6 | . . . . 1 4 . 1 . . Launcher 1 | . 1 . . . . . . . . Special Weapon . | . . . . . . . . . . Impact Weapon . | . . . . . . . . . . Slashing Weapon 1 | . . . . . 1 . . . . Piercing Weapon . | . . . . . . . . . . Special Melee Weapon . | . . . . . . . . . . Unidentified Prototypes 1 | . . . . . 1 . . . . Parts Lost 11 | . . . . . 7 . . 1 3 Power 3 | . . . . . 2 . . . 1 Propulsion 3 | . . . . . 2 . . . 1 Utility 3 | . . . . . 2 . . . 1 Weapon 2 | . . . . . 1 . . 1 . Highest Loss Streak 5 | . . . . . 5 . . 1 1 To Critical Strikes . | . . . . . . . . . . Average Backups 12 | 1 12 15 15 13 11 2 1 1 3 Power . | . . 1 1 1 . . . . . Propulsion 1 | . 2 2 2 1 . 1 1 1 2 Utility 4 | . 5 5 4 4 6 . . . . Weapon 4 | . 4 7 7 5 4 1 . . . Tool/Special . | . . . . . . . . . . Unused Backups 55 | . 11 1 2 20 14 3 . . 4 Power 4 | . 2 . . 2 . . . . . Propulsion 7 | . 2 . . 2 . . . . 3 Utility 28 | . 4 1 2 10 9 1 . . 1 Weapon 15 | . 3 . . 5 5 2 . . . Tool/Special 1 | . . . . 1 . . . . . Average Slot Usage (%) 89 | . 97 100 100 100 86 . 6 11 29 Engine 10 | . 14 14 14 14 6 . . . . Treads 22 | . 28 28 28 28 16 . . . . Device 5 | . . . . . 22 . . . 3 Storage 10 | . 13 14 14 14 4 . . . . Processor 10 | . 11 14 14 14 4 . . . . Energy Gun 2 | . 16 . . . . . . . 4 Energy Cannon 7 | . 5 27 28 9 . . . . . Ballistic Gun 9 | . 5 . . 14 9 . . . . Ballistic Cannon 3 | . . . . 4 6 . 3 5 . Slashing Weapon 1 | . . . . . 4 . . . . Peak Build Rating 76 | 6 13 13 13 32 76 3 17 18 58 Average Rating 32 | 5 8 13 13 23 71 2 12 16 29 On Entrance 10 | . 6 13 13 13 31 2 3 17 10 Avg Prop Armor Cover (%) 17 | . . . . 10 . . . 20 35 Naked Turns 132 | . . . . . 20 44 12 . 56 Heaviest Build 75 | 14 36 36 36 39 75 . 12 12 26 Greatest Support 68 | 40 40 40 40 50 68 3 28 28 32 Greatest Overweight (x) 6 | . . . . 1 1 . . 3 6 Average Overweight (x) . | . . . . . . . . . . Largest Inventory Capacity 15 | 8 15 15 15 15 15 5 5 5 5 Average Capacity 14 | 7 14 15 15 15 14 5 5 5 5 Most Carried 15 | 4 15 15 15 15 15 5 5 4 5 Average Carried 13 | 1 12 14 15 14 14 4 2 2 4 Final Capacity 15 | 8 15 15 15 15 5 5 5 5 5 Final Carried 15 | 4 15 15 15 15 5 5 2 4 3 Scrap Suit Usage (%) 2 | . . . . . 8 . . . . Parts Cannibalized 1 | . . . . . 1 . . . . Class Distribution -------------------- 56% | Mutant 16% | Derelict-Mutant 14% | Derelict-Skirmisher 9% | Derelict-Assassin Dominant Class ---------------- Mutant | -10/Materials Mutant | -10/Mines Mutant | -10/Subcaves Mutant | -7/Scraptown Derelict-Skirmisher | -5/Factory Mutant | -5/Waste Mutant | -5/Factory Mutant | -5/DSF Mutant | -4/Factory Resources | -11 -10 -10 -10 -7 -5 -5 -5 -5 -4 ----------- Run | Yrd Mat Min Sub Scr Fac Was Fac DSF Fac Matter Collected 1314 | 242 239 48 10 80 605 . . . 90 Remotely 399 | . . . . . 399 . . . . Salvage Created 1235 | . 308 74 126 . 589 . . . 138 Parts 74 | . 24 10 7 . 23 . . . 10 Haulers Intercepted 2 | . 1 . . . 1 . . . . Recyclers Shooed 7 | . 1 . . . 6 . . . . Parts Field Recycled . | . . . . . . . . . . Retrieved Matter . | . . . . . . . . . . Parts Self-Destructed 7 | . . . 7 . . . . . . Prevented 3 | . . . 3 . . . . . . Parts Restored . | . . . . . . . . . . Kills | -11 -10 -10 -10 -7 -5 -5 -5 -5 -4 ------- Run | Yrd Mat Min Sub Scr Fac Was Fac DSF Fac Combat Hostiles Destroyed 31 | . 9 5 3 . 9 . . . 5 Melee 2 | . . . . . 1 . . . 1 Guns 12 | . 4 2 . . 2 . . . 4 Cannons 14 | . 2 3 3 . 6 . . . . AOE 3 | . 3 . . . . . . . . Classes Destroyed 11 | . 5 . 2 . 4 . . . . Worker 3 | . 1 . . . 2 . . . . Builder 1 | . . . . . 1 . . . . Hauler 2 | . 1 . . . 1 . . . . Recycler 1 | . . . . . 1 . . . . Mechanic 1 | . . . . . 1 . . . . Operator 3 | . 2 . . . . . . . 1 Swarmer 18 | . 6 5 1 . 1 . . . 5 Grunt 5 | . 3 . . . 2 . . . . Sentry 2 | . . . 1 . 1 . . . . Programmer 5 | . . . . . 5 . . . . Subdweller 1 | . . . 1 . . . . . . Best Kill Streak 4 | . 4 3 2 . 4 . . . 3 Combat Bots Only 3 | . 3 3 2 . 3 . . . 3 Max Kills in Single Turn 2 | . 2 1 1 . 2 . . . 1 Gunslinging . | . . . . . . . . . . Exploded 2 | . 2 . . . . . . . . Melee 1 | . . . . . 1 . . . 1 Uniques/NPCs Destroyed . | . . . . . . . . . . Combat | -11 -10 -10 -10 -7 -5 -5 -5 -5 -4 -------- Run | Yrd Mat Min Sub Scr Fac Was Fac DSF Fac Hostile Shots Fired 413 | . 38 11 5 13 146 . . 38 162 Missed 149 | . 12 3 2 3 51 . . 11 67 Hits 264 | . 26 8 3 10 95 . . 27 95 Projectile 264 | . 26 8 3 10 95 . . 27 95 AOE 3 | . . . . . 3 . . . . Critical Strikes 7 | . . . . 1 1 . . . 5 Part Disruptions 2 | . . . . . 1 . . 1 . Damage Taken 4606 | . 280 68 33 168 1907 . . 425 1725 Core 1634 | . 17 . 14 12 222 . . 160 1209 Absorbed by Shields . | . . . . . . . . . . Ignored by Resistances 60 | . . . . . . . . . 60 Regen/Repaired (Parts) 7 | . . . . . 7 . . . . Core Remaining (%) 81 | 100 . . . 82 . . . 61 . Volleys Fired 79 | . 23 6 4 . 35 . . . 11 Largest 3 | . 2 2 2 . 3 . . . 2 Hottest 176 | . 112 112 112 . 120 . . . 176 Shots Fired 180 | . 44 9 8 . 102 . . . 17 Gun 84 | . 36 3 . . 28 . . . 17 Cannon 94 | . 6 6 8 . 74 . . . . Launcher 2 | . 2 . . . . . . . . Special . | . . . . . . . . . . Kinetic 130 | . 22 3 . . 102 . . . 3 Thermal 14 | . . . . . . . . . 14 Explosive 2 | . 2 . . . . . . . . Electromagnetic 34 | . 20 6 8 . . . . . . Robot Hit Streak 9 | . 8 3 9 . 7 . . . 6 Robot Miss Streak 4 | . 3 2 . . 4 . . . 1 Penetration Max 1 | . . . . . 1 . . . . Secondary Targets . | . . . . . . . . . . Shots Hit Robots 115 | . 30 4 6 . 65 . . . 10 Core Hits 62 | . 18 5 2 . 29 . . . 8 Critical Kills 1 | . . . . . 1 . . . . Critical Parts Destroyed 2 | . 2 . . . . . . . . Critical Strikes 11 | . 3 . . . 8 . . . . Destroy 3 | . 2 . . . 1 . . . . Blast 7 | . . . . . 7 . . . . Corrupt 1 | . 1 . . . . . . . . Melee Attacks 27 | . . . . . 27 . . . . Impact . | . . . . . . . . . . Slashing 27 | . . . . . 27 . . . . Piercing . | . . . . . . . . . . Sneak Attacks 8 | . . . . . 8 . . . . Combat Hostiles . | . . . . . . . . . . Follow-up Attacks . | . . . . . . . . . . Damage Inflicted 3851 | . 649 88 118 4 2668 . . . 324 Guns 1045 | . 325 31 . . 453 . . . 236 Cannons 1695 | . 117 57 118 . 1403 . . . . Explosions 328 | . 207 . . . 121 . . . . Melee 687 | . . . . . 687 . . . . Ramming 96 | . . . . 4 4 . . . 88 Kinetic 2128 | . 194 31 . . 1856 . . . 47 Thermal 357 | . 47 . . . 121 . . . 189 Explosive 160 | . 160 . . . . . . . . Electromagnetic 423 | . 248 57 118 . . . . . . Impact . | . . . . . . . . . . Slashing 687 | . . . . . 687 . . . . Piercing . | . . . . . . . . . . Highest Corruption 8 | . . . . 1 4 4 4 8 3 Average Corruption 2 | . . . . 1 2 4 4 4 2 Corruption Purged . | . . . . . . . . . . Corruption Blocked . | . . . . . . . . . . Effects 10 | . . . . . 6 1 2 1 . Message Errors 4 | . . . . . 3 1 . . . Matter Fused 3 | . . . . . 2 . . 1 . Heat Flow Errors 1 | . . . . . . . 1 . . Energy Discharges 1 | . . . . . 1 . . . . Data Loss (minor) 1 | . . . . . . . 1 . . Overload Shots . | . . . . . . . . . . Overflow Damage 288 | . 11 . 10 . 267 . . . . Projectiles 50 | . 6 . 10 . 34 . . . . Explosions 53 | . 5 . . . 48 . . . . Melee 185 | . . . . . 185 . . . . Knockbacks 9 | . . . . . 9 . . . . Impact . | . . . . . . . . . . Kinetic 8 | . . . . . 8 . . . . Secondary 1 | . . . . . 1 . . . . Self-Inflicted Damage 63 | . 23 . . . 2 . . . 38 Shots 1 | . 1 . . . . . . . . Rammed 21 | . . 1 . 1 1 . . . 18 Targets Rammed 21 | . . 1 . 1 1 . . . 18 Kicked . | . . . . . . . . . . Crushed . | . . . . . . . . . . Highest Temperature 490 | . 45 135 4 14 490 . 240 . 252 Average Temperature 108 | . 17 70 4 11 139 . 140 . 100 Received Heat Transfer 581 | . 78 . 9 60 183 . . . 251 Effects 6 | . . . . . 5 . . . 1 Shutdowns 3 | . . . . . 3 . . . . Energy Bleed 2 | . . . . . 1 . . . 1 Matter Decay 1 | . . . . . 1 . . . . Siege Activations . | . . . . . . . . . . Martial Activations . | . . . . . . . . . . Shielding Activations . | . . . . . . . . . . Robots Disrupted . | . . . . . . . . . . Combat Hostiles . | . . . . . . . . . . Robots Corrupted . | . . . . . . . . . . Combat Hostiles . | . . . . . . . . . . Parts Fried 1 | . 1 . . . . . . . . Impact Corruptions . | . . . . . . . . . . Robots Melted . | . . . . . . . . . . Combat Hostiles . | . . . . . . . . . . Parts Melted 1 | . . . 1 . . . . . . Heat Transferred 409 | . 50 . . . 100 . . . 259 Parts Sabotaged . | . . . . . . . . . . Parts Stolen . | . . . . . . . . . . Parts Stripped . | . . . . . . . . . . Power Chain Reactions 1 | . 1 . . . . . . . . Alert | -11 -10 -10 -10 -7 -5 -5 -5 -5 -4 ------- Run | Yrd Mat Min Sub Scr Fac Was Fac DSF Fac Maximum Alert Level 1 | . . . . . 1 . . . . Low Security (%) 97 | 100 100 100 . . 94 100 100 100 100 Level 1 2 | . . . . . 5 . . . . Level 2 . | . . . . . . . . . . Level 3 . | . . . . . . . . . . Level 4 . | . . . . . . . . . . Level 5 . | . . . . . . . . . . High Security . | . . . . . . . . . . Max Security . | . . . . . . . . . . Peak Influence 359 | . 126 104 . . 359 125 73 57 97 Initial 125 | . . 34 . . . 125 73 42 24 Average 31 | . 37 53 . . 23 118 69 43 31 Influence Increases 1333 | . 309 110 40 . 602 . 7 15 250 Destroy 0b10 Robot/C 600 | . 180 100 40 . 180 . . . 100 Destroy 0b10 Robot/NC 55 | . 20 . . . 30 . . . 5 Destroy Leader 114 | . 42 10 . . 52 . . . 10 Successful Hack 11 | . . . . . 4 . 7 . . Disable Machine 135 | . 15 . . . 120 . . . . Destroy Structure 178 | . 22 . . . 156 . . . . Partial Spotted 15 | . . . . . 15 . . . . Lose Combat Pursuer 225 | . 30 . . . 45 . . 15 135 Influence Decreases 1244 | . 219 196 44 . 244 253 52 28 208 Entered New Map 365 | . . 56 3 . . 233 32 18 23 Time Decay 769 | . 219 140 41 . 184 20 20 . 145 Lost Part 90 | . . . . . 60 . . 10 20 Lost Ally 20 | . . . . . . . . . 20 Squads Dispatched 17 | . 2 . . . 10 . 1 1 3 Investigation 5 | . 1 . . . 3 . 1 . . Extermination 5 | . . . . . 4 . . . 1 Reinforcement 6 | . 1 . . . 2 . . 1 2 Assault . | . . . . . . . . . . Garrison 1 | . . . . . 1 . . . . Intercept . | . . . . . . . . . . Searches Triggered . | . . . . . . . . . . Construction Impeded 1 | . . . . . 1 . . . . Haulers Reinforced 1 | . . . . . 1 . . . . Active Scanning Responses . | . . . . . . . . . . Cargo Convoy Interrupts . | . . . . . . . . . . Stealth | -11 -10 -10 -10 -7 -5 -5 -5 -5 -4 --------- Run | Yrd Mat Min Sub Scr Fac Was Fac DSF Fac Distress Signals 4 | . 3 . . . . . . . 1 Communications Jammed . | . . . . . . . . . . Distress Signals . | . . . . . . . . . . Times Spotted 108 | . 21 6 3 6 28 5 1 4 34 Peak Tracking Total 13 | . 3 3 2 5 10 5 1 4 13 Tactical Retreats 7 | . 2 . . . 1 . . 1 3 Traps | -11 -10 -10 -10 -7 -5 -5 -5 -5 -4 ------- Run | Yrd Mat Min Sub Scr Fac Was Fac DSF Fac Traps Triggered 3 | . 1 . . . 1 . . . 1 Indirectly . | . . . . . . . . . . Trap Hack Attempts . | . . . . . . . . . . Triggered . | . . . . . . . . . . Disarmed . | . . . . . . . . . . Reprogrammed . | . . . . . . . . . . Reused . | . . . . . . . . . . Traps Extracted . | . . . . . . . . . . Installed . | . . . . . . . . . . Triggered . | . . . . . . . . . . Machines | -11 -10 -10 -10 -7 -5 -5 -5 -5 -4 ---------- Run | Yrd Mat Min Sub Scr Fac Was Fac DSF Fac Machines Disabled 9 | . 1 . . . 8 . . . . Max in Single Turn 4 | . 1 . . . 4 . . . . Machines Repaired . | . . . . . . . . . . Machines Dismantled . | . . . . . . . . . . Machines Sabotaged . | . . . . . . . . . . Overloaded Fab Kills . | . . . . . . . . . . Hacking | -11 -10 -10 -10 -7 -5 -5 -5 -5 -4 --------- Run | Yrd Mat Min Sub Scr Fac Was Fac DSF Fac Machines Accessed 21 | . 3 . . 8 5 . 3 . 2 Terminals 8 | . 3 . . . 2 . 2 . 1 Fabricators . | . . . . . . . . . . Repair Stations . | . . . . . . . . . . Recycling Units 3 | . . . . . 3 . . . . Scanalyzers 2 | . . . . . . . 1 . 1 Garrison Access . | . . . . . . . . . . Total Hacks 69 | . 8 . . 38 11 . 9 . 3 Successful 53 | . 4 . . 38 5 . 5 . 1 Failed 15 | . 4 . . . 6 . 3 . 2 Catastrophic 4 | . 2 . . . 1 . . . 1 Database Lockouts 1 | . . . . . . . 1 . . Manual 12 | . . . . . 10 . 1 . 1 Terminals 21 | . 8 . . . 6 . 6 . 1 Fabricators . | . . . . . . . . . . Repair Stations . | . . . . . . . . . . Recycling Units 5 | . . . . . 5 . . . . Scanalyzers 5 | . . . . . . . 3 . 2 Garrison Access . | . . . . . . . . . . Terminal Hacks 45 | . 4 . . 38 . . 3 . . Record 42 | . 2 . . 38 . . 2 . . Prototype ID Bank 1 | . 1 . . . . . . . . Open DSF 1 | . . . . . . . 1 . . Branch Access Points 1 | . 1 . . . . . . . . Fabricator Hacks . | . . . . . . . . . . Repair Station Hacks . | . . . . . . . . . . Recycling Unit Hacks . | . . . . . . . . . . Scanalyzer 2 | . . . . . . . 1 . 1 Retrieve Study 2 | . . . . . . . 1 . 1 Garrison Access Hacks . | . . . . . . . . . . Unauthorized Hacks 6 | . . . . . 5 . 1 . . Terminals 3 | . . . . . 2 . 1 . . Botnet 3 | . . . . . 2 . 1 . . Fabricators . | . . . . . . . . . . Repair Stations . | . . . . . . . . . . Recycling Units 3 | . . . . . 3 . . . . Fedlink 3 | . . . . . 3 . . . . Scanalyzers . | . . . . . . . . . . Garrison Access . | . . . . . . . . . . Data Cores Recovered 1 | . 1 . . . . . . . . Used . | . . . . . . . . . . Hacking Detections 10 | . 3 . . . 2 . 3 . 2 Full Trace Events 1 | . . . . . . . 1 . . Feedback Events . | . . . . . . . . . . Feedback Blocked . | . . . . . . . . . . Robot Schematics Acquired . | . . . . . . . . . . Robots Built . | . . . . . . . . . . Authchips . | . . . . . . . . . . Time . | . . . . . . . . . . Total Robot Build Rating . | . . . . . . . . . . Part Schematics Acquired . | . . . . . . . . . . Parts Built . | . . . . . . . . . . Authchips . | . . . . . . . . . . Time . | . . . . . . . . . . Total Part Build Rating . | . . . . . . . . . . Part Studies Acquired 1 | . . . . . . . . . 1 Parts Repaired . | . . . . . . . . . . Time . | . . . . . . . . . . Parts Recycled . | . . . . . . . . . . Recycled Matter . | . . . . . . . . . . Retrieved Matter . | . . . . . . . . . . Retrieved Components . | . . . . . . . . . . Parts Scanalyzed . | . . . . . . . . . . Part Schematics Acquired . | . . . . . . . . . . Parts Damaged . | . . . . . . . . . . Bothacking | -11 -10 -10 -10 -7 -5 -5 -5 -5 -4 ------------ Run | Yrd Mat Min Sub Scr Fac Was Fac DSF Fac Used RIF Installer . | . . . . . . . . . . Robots Hacked . | . . . . . . . . . . Non-combat . | . . . . . . . . . . Combat . | . . . . . . . . . . Robot Hacks Applied . | . . . . . . . . . . Relay Couplers Released . | . . . . . . . . . . Fabnet Peak Effective % . | . . . . . . . . . . Robots Rewired . | . . . . . . . . . . Allies Hacked . | . . . . . . . . . . Hacks Repelled . | . . . . . . . . . . Allies | -11 -10 -10 -10 -7 -5 -5 -5 -5 -4 -------- Run | Yrd Mat Min Sub Scr Fac Was Fac DSF Fac Total Allies 1 | . . 1 . . . . . . . Largest Group 1 | . . 1 1 . . . . . . Highest-Rated Group 31 | . . 31 31 . . . . . . Highest-Rated Ally 31 | . . 31 31 . . . . . . Total Orders 1 | . . . . . . . . . 1 EXPLORE 1 | . . . . . . . . . 1 Ally Attacks 8 | . . . 8 . . . . . . Total Damage 101 | . . . 101 . . . . . . Kills . | . . . . . . . . . . Allies Corrupted . | . . . . . . . . . . Allies Melted . | . . . . . . . . . . Intel | -11 -10 -10 -10 -7 -5 -5 -5 -5 -4 ------- Run | Yrd Mat Min Sub Scr Fac Was Fac DSF Fac Active Infowar (turns) 1765 | . . . . . 1724 . . . 41 Sensors 1762 | . . . . . 1721 . . . 41 Traps 673 | . . . . . 673 . . . . Robot Analysis Total . | . . . . . . . . . . Derelict Logs Recovered 2 | . . 2 . . . . . . . Drone Launches 2 | . . . . . . . . . 2 Drone Recoveries . | . . . . . . . . . . Exploration | -11 -10 -10 -10 -7 -5 -5 -5 -5 -4 ------------- Run | Yrd Mat Min Sub Scr Fac Was Fac DSF Fac Turns Passed 7279 | 98 1038 298 351 3064 1868 44 42 39 437 Spaces Moved 4538 | 55 562 168 205 1912 999 78 51 31 477 Core 263 | 2 . . . . 39 78 23 9 112 Treads 3860 | 53 562 168 205 1912 960 . . . . Legs . | . . . . . . . . . . Wheels 179 | . . . . . . . 28 22 129 Hover 81 | . . . . . . . . . 81 Flight 155 | . . . . . . . . . 155 Fastest Speed 32 | 50 160 160 160 142 50 50 50 50 32 Average Speed 143 | 156 160 160 160 156 153 50 77 119 60 Slowest Speed 355 | 160 160 160 160 225 208 50 100 200 355 Overloaded Moves . | . . . . . . . . . . Propulsion Burnouts . | . . . . . . . . . . Robots Hopped 1 | . . . . . . . . . 1 Potential Cave-ins . | . . . . . . . . . . Cave-ins Triggered . | . . . . . . . . . . Exploration Rate (%) 37 | 4 76 36 19 94 28 66 2 40 12 Regions Visited 9 Branch Regions 3 Pre-discovered Areas 2 | . . 1 . . 1 . . . . Known Exits Taken 3 | . 1 . . 1 . . 1 . . Unknown Exits Taken 3 | 1 . 1 1 . . . . . . Scrap Searched 11 | . . 1 . 10 . . . . . Spaces Dug 13 | . . . . . 13 . . . . Terrain Destroyed 105 | . 24 . . . 81 . . . . Melee 13 | . . . . . 13 . . . . Projectile 17 | . . . . . 17 . . . . AOE 75 | . 24 . . . 51 . . . . Terrain Rammed . | . . . . . . . . . . Walls Destroyed . | . . . . . . . . . . Machines Disabled . | . . . . . . . . . . Actions | -11 -10 -10 -10 -7 -5 -5 -5 -5 -4 --------- Run | Yrd Mat Min Sub Scr Fac Was Fac DSF Fac Total 5137 | 64 659 188 222 2001 1230 83 53 32 605 Wait 216 | . 18 5 8 17 108 . 1 . 59 Move 4529 | 54 561 167 204 1912 999 77 50 30 475 Hop 1 | . . . . . . . . . 1 Pick Up 97 | 4 26 3 2 30 23 3 . 2 4 Fast Attach 31 | 6 3 . . . 1 . . . 21 Attach 20 | . . . . 3 11 . 2 . 4 Detach 2 | . . . . . . . . . 2 Swap 30 | . 10 3 1 6 10 . . . . Drop 85 | . 18 3 3 33 15 3 . . 10 Fire 79 | . 23 6 4 . 35 . . . 11 Melee 27 | . . . . . 27 . . . . Ram 19 | . . . . . 1 . . . 18 Kick . | . . . . . . . . . . Crush 1 | . . 1 . . . . . . . Escape Stasis . | . . . . . . . . . . Rewire . | . . . . . . . . . . Trap . | . . . . . . . . . . Miscellaneous . | . . . . . . . . . . Route ------- -11/Scrapyard -10/Materials (discovered 3 exits: [*Mat x2] / *Min) -10/Mines -10/Subcaves -7/Scraptown (discovered 2 exits: *Fac x2) -5/Factory (discovered 2 exits: *Fac x2) -5/Waste -5/Factory -5/DSF -4/Factory History --------- Turn | Location | Event 4 | -11/Scrapyard | Discovered new exit (range 16) 99 | -11/Scrapyard | Entered Materials 304 | -10/Materials | Build established: Mutant 651 | -10/Materials | Discovered new exit (range 15) 837 | -10/Materials | Identified exit to Mines 983 | -10/Materials | Discovered new exit (range 13) 1137 | -10/Materials | Entered Mines 1245 | -10/Mines | Learned 8 Materials zone layouts 1296 | -10/Mines | Learned location of Storage (-7) 1304 | -10/Mines | Received a Mining Laser from a helpful Derelict 1323 | -10/Mines | Discovered new exit (range 8) 1435 | -10/Mines | Entered Subcaves 1435 | -10/Subcaves | Accompanied by 1 ally 1436 | -10/Subcaves | Approached by a straggling Scientist 1785 | -10/Subcaves | Scientist uncovered a shortcut to Scraptown 1786 | -10/Subcaves | Entered Scraptown 1880 | -7/Scraptown | Heard Great Nut preacher, LISTEN AND RECITE! 2447 | -7/Scraptown | Discovered new exit (range 5) 2494 | -7/Scraptown | Identified exit to Factory 2655 | -7/Scraptown | Visited Cyclists 2716 | -7/Scraptown | Visited Bundlers 2885 | -7/Scraptown | Visited UFD Registry 2885 | -7/Scraptown | Registered with UFD as "Wrenchsourcer" 2919 | -7/Scraptown | Visited IN-MT5's Study 2976 | -7/Scraptown | Visited Spacefarers 3058 | -7/Scraptown | Visited SPCMW 3130 | -7/Scraptown | Visited Shadow of the Wyrm 3181 | -7/Scraptown | Visited CPS Storage 3248 | -7/Scraptown | Entered Cyclist Reading Room 3577 | -7/Scraptown | Visited Scrapoid Pod Storage 3615 | -7/Scraptown | Visited Derelict Rescue Squad 3625 | -7/Scraptown | Found DRS Beacon 3664 | -7/Scraptown | Visited DA-N13 Charitable Foundation 3683 | -7/Scraptown | Found DCF Scrap (31 items) 3796 | -7/Scraptown | Visited Curators Association 3875 | -7/Scraptown | Visited Infowarlord's Domain 3916 | -7/Scraptown | Visited Science Testing Area 3937 | -7/Scraptown | Visited Science Guys 3985 | -7/Scraptown | Build established: Derelict-Mutant 4045 | -7/Scraptown | Visited Scrapoid Research Area 4095 | -7/Scraptown | Visited Abandonware Association 4119 | -7/Scraptown | Learned abandonware demo "REBOOT5.EXE" 4156 | -7/Scraptown | Visited Sword Containment 4222 | -7/Scraptown | Found Scrapoid Pod 4613 | -7/Scraptown | Found Scrap Suit 4618 | -7/Scraptown | Found Scrap Suit 4637 | -7/Scraptown | Discovered exit to Factory (range 5) 4731 | -7/Scraptown | Met Optimus 4731 | -7/Scraptown | Accepted into 0bPrime 4834 | -7/Scraptown | Civil war broke out across Scraptown 4850 | -7/Scraptown | Entered Factory 4850 | -5/Factory | Evolved 10 slots: Power x1, Propulsion x2, Utility x5, Weapon x2 5163 | -5/Factory | Build established: Derelict-Assassin 5567 | -5/Factory | Loaded intel: 8 recycling unit locations 5724 | -5/Factory | Learned location of Protoforge (-2) 5812 | -5/Factory | Build established: Derelict-Skirmisher 5996 | -5/Factory | Discovered new exit (range 5) 6002 | -5/Factory | Identified exit to Factory 6106 | -5/Factory | Discovered exit to Factory (range 5) 6668 | -5/Factory | Garrison activated, responded to threat 6674 | -5/Factory | Spotted B-75 Beast 6698 | -5/Factory | Released all parts (10) 6718 | -5/Factory | Sucked down chute 6718 | -5/Factory | Entered Waste 6724 | -5/Waste | Spotted C-40 Crusher 6727 | -5/Waste | Lost 5 parts (2p2n1u) 6730 | -5/Waste | Found Gamma Bomb Array 6744 | -5/Waste | Spotted C-40 Crusher 6745 | -5/Waste | Spotted C-40 Crusher 6747 | -5/Waste | Spotted C-40 Crusher 6752 | -5/Waste | Spotted C-40 Crusher 6752 | -5/Waste | Spotted C-40 Crusher 6757 | -5/Waste | Discovered new exit (range 10) 6762 | -5/Waste | Entered Factory 6768 | -5/Factory | Central database locked down 6804 | -5/Factory | Identified exit to DSF 6804 | -5/Factory | Entered DSF 6818 | -5/DSF | Discovered exit to Factory (range 15) 6827 | -5/DSF | Additional patrols routed to DSF 6843 | -5/DSF | Entered Factory 6843 | -4/Factory | Evolved 2 slots: Weapon x2 7003 | -4/Factory | Build established: Mutant 7167 | -4/Factory | Released all parts (4) 7249 | -4/Factory | Released all parts (6) 7251 | -4/Factory | Core integrity fell below 50% 7269 | -4/Factory | Core integrity fell below 20% 7280 | -4/Factory | Destroyed by H-71 Marshal with Heavy Mass Driver Last Messages --------------- 07229_ Penetrated by Slug. 07229_ Slug penetrates Wall. 07233_ P-70 Sage resets H-77 Assassin, system corruption cleaned. 07239_ Acquired Adv. Reaction Control System. 07245_ Lgt. Nuclear Core destroyed. 07249_ Released Imp. Antigrav System. 07249_ Released Adv. Signal Interpreter. 07249_ Released Imp. Focal Shield. 07249_ Released Gravmag Array. 07249_ Released Hvy. Disruptor Cannon. 07249_ Released Adv. Reaction Control System. 07265_ Slammed into P-70 Sage. 07266_ Slammed into G-73 Enforcer. 07266_ Destabilizing: System corrupted (+2). 07267_ Slammed into G-67 Veteran. 07268_ S-27 Virus destroyed. 07270_ R-10 Processor collects Adv. Reaction Control System. 07271_ Critical hit (Burn: +37). 07274_ ALERT: Suspicious intruders detected, dispatching Cutter reinforcements to area. Map ----- +----------------------------------------------------+ | ????????????????????????????????????????????? | | ????????????????????????????????????????????? | | ????????????????????????????????????????????? | | ????????????????????????????????????????????? | | ????????????????????????????????????????????? | | ????????????????????????????????????????????? | | ????????????????????????????????????????????? | | ????????????????????????????????????????????? | | ????????????????????????????????????????????? | | ????????????????????????????????????????????? | | ?????????????????? ??????????????????????? | | ????????????????# ??????????????????????? | | ????????????????# ??????????????????????? | | ???????????????## ??????????????????????? | | ???????????????# ??????????????????????? | | ?????????????###s s ????????############### | | ??????????????ss s ????????# ! | | ??????????????? H ????????# | | ??????????????? ????????# | | ???????????????? ????????# | | ????????????????? ????????# """" """" """ | | ?????????????????# #????????# """" """" """ | | ?????????????????# #????????# """" """" """ | | ?????????????????+ #????????# """" """" """ | | ?????????????????# #????????# | | ?????????????????# @######################## | | ?????????????????# % | | ?????????????????# | | ?????????????????# | | ?????????????????##################+######### | | ?????????????????????????????????? #???????? | | ?????????????????????????????????? #???????? | | ?????????????????????????????????" #???????? | | ?????????????????????????????????" #???????? | | ????????????????????????????????"" #???????? | | ???????????????????????????????? #???????? | | ????????????????????????????????"" #???????? | | ????????????????????????????????"" ????????? | | ?????????????????????????????????" ????????? | | ?????????????????????????????????" ????????? | | ????????????????????????????????? ????????? | | ????????????????????????????????? ????????? | | ?????????????????????????????????###????????? | | ????????????????????????????????????????????? | | ????????????????????????????????????????????? | | ????????????????????????????????????????????? | | ????????????????????????????????????????????? | | ???????????????????????????????????????????## | | ????##############?????##################### | | ????# ####### ## | +----------------------------------------------------+ Best States ------------- Heat Dissipation 54 Energy Generation 29 Energy Capacity 340 Matter Stores 300 Matter Capacity 300 Sight Range 16 Robot Scan Range 16 Terrain Scan Density 10 Armor Coverage 225 Resistance: KI 25 Power Shielding 66 Utility Shielding 33 Evasion (%) 63 Targeting Accuracy 5 Recoil Reduction 3 Matter Filtering 50 Energy Filtering 30 Defensive Hacking 12 Item Schematics ----------------- None Robot Schematics ------------------ None Fabricated ------------ Nothing Repaired ---------- Nothing Studied --------- Dispersion Rifle | -4/Factory | Hacked Alien Tech Used ----------------- None Achievements -------------- Nice Directions, Buddy Party Time Streaker True Hacker Uncivil War Challenges ------------ None Game ------ Seed TerrainActiveRigger Manual? 0 Play Time 01:42:35 Cumulative 64.6 hours Start 2026.02.04 @ 17:35:33 End 2026.02.04 @ 19:21:42 Sessions 1 Manual Loads 0 Difficulty Rogue Special Mode None Game No. 46 Rogue 46 Adventurer 0 Explorer 0 Win Type - Total 3 Types 3/0/0/0/0/0/0/0/0/0 Lore% 31 Gallery% 40 Achievement% 29 Wizard Run 0 Options --------- Layout 0 ASCII 0 Keyboard 0 Movement Numpad Keybinds 0 Fullscreen 2 Font 24/Terminus Map View 76x50 Zoom Use 0% Tactical HUD 1 Map Filters NONE Filters NONE Steam 1 RUN: 0675c03e-b754-4708-85be-9224d3692f17